Cogmind - Beta 13 @@@ ROGUE MODE // 2024.04.20 @ 15:30:33 Player: oranges Result: Destroyed by 0B-YAT(z) with Zionite Laser-S Performance ------------- Evolutions (1) 500 Regions Visited (6) 1200 Robots Destroyed (51) 255 Value Destroyed (1241) 1241 Prototype IDs (4) 80 Alien Tech Used (0) 0 Bonus (600) 600 TOTAL SCORE: 3876 Bonus ------- Met Imprinter 300 Was Imprinted 300 Cogmind --------- Core Integrity 0/400 Matter 256/300 Energy 100/100 System Corruption 0% Temperature Cool (36) Movement Core (350) Ox6 Location -7/Deep Caves Parts ------- > --- POWER (1) -------- (None) > --- PROPULSION (2) --- (None) > --- UTILITY (4) ------ Large Storage Unit Hacking Suite Hacking Suite > --- WEAPON (2) ------- (None) > --- INVENTORY (15) --- Cooled Ion Engine Light Treads Compact Wheel Transmission Jammer ECM Suite Light Armor Plating Makeshift System Shield Improved EM Shotgun Improved Medium Laser Light Cannon EMP Blaster EMP Blaster RU-N14's Throwing Claymores (2) Makeshift Axe Peak State ------------ > --- POWER ------------ Cooled Ion Engine > --- PROPULSION ------- Armored Treads Armored Treads > --- UTILITY ---------- Large Storage Unit Structural Scanner Hacking Suite Hacking Suite > --- WEAPON ----------- Mini Grenade Launcher RU-N14's Throwing Claymores > --- INVENTORY -------- Cooled Ion Engine Light Treads Armored Treads Compact Wheel Transmission Jammer ECM Suite Light Armor Plating Makeshift System Shield Improved EM Shotgun Improved EM Shotgun Improved Medium Laser Light Cannon EMP Blaster EMP Blaster Makeshift Axe [Rating: 29] Favorites ----------- Power Cooled Ion Engine Engine Cooled Ion Engine Propulsion Armored Treads Treads Armored Treads Wheel Compact Wheel Utility Hacking Suite Device Structural Scanner Storage Large Storage Unit Hackware Hacking Suite Protection Light Armor Plating Weapon Mini Grenade Launcher Energy Gun Improved EM Shotgun Ballistic Gun Light Assault Rifle Ballistic Cannon Light Cannon Launcher Mini Grenade Launcher Special Weapon RU-N14's Throwing Claymores Slashing Weapon Mining Claw Piercing Weapon Makeshift Spear Build | -11 -10 -10 -9 -9 -7 -7 ------- Run | Yrd Mat Min Mat Min Zio Dee Slots Evolved 2 | . . . 2 . . . Power . | . . . . . . . Propulsion . | . . . . . . . Utility 2 | . . . 2 . . . Weapon . | . . . . . . . Parts Attached 68 | 6 20 2 27 2 9 2 Power 4 | 1 1 . 2 . . . Engine 4 | 1 1 . 2 . . . Core . | . . . . . . . Reactor . | . . . . . . . Propulsion 12 | 2 5 . 4 . . 1 Treads 8 | . 3 . 4 . . 1 Leg . | . . . . . . . Wheel 4 | 2 2 . . . . . Hover . | . . . . . . . Flight . | . . . . . . . Utility 14 | 1 3 . 5 2 3 . Device 4 | . 2 . 1 . 1 . Storage 4 | 1 1 . . 1 1 . Processor . | . . . . . . . Hackware 2 | . . . 2 . . . Protection 4 | . . . 2 1 1 . Artifact . | . . . . . . . Weapon 38 | 2 11 2 16 . 6 1 Energy Gun 7 | 1 1 . 4 . . 1 Energy Cannon . | . . . . . . . Ballistic Gun 12 | 1 6 1 4 . . . Ballistic Cannon 7 | . 1 1 5 . . . Launcher 2 | . . . 1 . 1 . Special Weapon 1 | . . . . . 1 . Impact Weapon . | . . . . . . . Slashing Weapon 8 | . 3 . 2 . 3 . Piercing Weapon 1 | . . . . . 1 . Special Melee Weapon . | . . . . . . . Unidentified Prototypes 4 | . . . 3 . 1 . Parts Lost 13 | . 3 . 3 . . 7 Power 3 | . 1 . 1 . . 1 Propulsion 6 | . 1 . 2 . . 3 Utility 1 | . . . . . . 1 Weapon 3 | . 1 . . . . 2 Highest Loss Streak 7 | . 2 . 1 . . 7 To Critical Strikes . | . . . . . . . Average Slot Usage (%) 98 | . 95 100 99 100 100 98 Engine 11 | . 13 14 10 11 11 10 Treads 19 | . 17 14 17 22 22 21 Wheel 3 | . 10 14 3 . . . Device 9 | . 10 14 10 . 8 10 Storage 11 | . 14 14 11 11 11 11 Hackware 14 | . . . 11 22 22 22 Protection 3 | . . . 10 11 2 . Energy Gun 7 | . 5 8 14 22 2 6 Ballistic Gun 5 | . 18 14 2 . . . Ballistic Cannon 1 | . 1 5 2 . . . Launcher 4 | . . . . . 8 11 Slashing Weapon 3 | . 2 . 1 . 6 3 Piercing Weapon 1 | . . . . . 4 . Naked Turns . | . . . . . . . Heaviest Build 38 | 14 29 28 38 37 37 33 Greatest Support 40 | 26 40 16 40 40 40 40 Greatest Overweight (x) 1 | . 1 1 1 . . 1 Average Overweight (x) . | . . 1 . . . . Largest Inventory Capacity 15 | 8 15 15 15 15 15 15 Average Capacity 14 | 6 14 15 15 15 14 15 Most Carried 15 | 6 15 15 15 15 15 15 Average Carried 14 | 4 12 14 14 14 14 14 Final Capacity 15 | 8 15 15 15 15 15 15 Final Carried 15 | 6 15 15 15 15 15 14 Class Distribution -------------------- 52% | Hacker-Mutant 40% | Mutant 7% | Scavenger-Mutant Dominant Class ---------------- Mutant | -10/Materials Mutant | -10/Mines Mutant | -9/Materials Hacker-Mutant | -9/Mines Hacker-Mutant | -7/Zion Hacker-Mutant | -7/Deep Caves Resources | -11 -10 -10 -9 -9 -7 -7 ----------- Run | Yrd Mat Min Mat Min Zio Dee Matter Collected 1135 | 188 401 67 413 . 66 . Remotely . | . . . . . . . Salvage Created 1679 | . 566 78 1035 . . . Parts 109 | . 44 13 52 . . . Haulers Intercepted 6 | . 2 . 4 . . . Recyclers Shooed . | . . . . . . . Parts Field Recycled . | . . . . . . . Retrieved Matter . | . . . . . . . Parts Self-Destructed . | . . . . . . . Prevented . | . . . . . . . Kills | -11 -10 -10 -9 -9 -7 -7 ------- Run | Yrd Mat Min Mat Min Zio Dee Combat Hostiles Destroyed 36 | . 12 6 18 . . . Guns 30 | . 12 6 12 . . . Cannons 6 | . . . 6 . . . Classes Destroyed 9 | . 6 . 3 . . . Builder 2 | . 2 . . . . . Hauler 6 | . 2 . 4 . . . Mechanic 1 | . . . 1 . . . Operator 4 | . 1 . 3 . . . Watcher 2 | . 1 . 1 . . . Swarmer 10 | . 4 6 . . . . Grunt 18 | . 8 . 10 . . . Brawler 2 | . . . 2 . . . Sentry 6 | . . . 6 . . . Best Kill Streak 5 | . 5 3 4 . . . Combat Bots Only 4 | . 4 3 3 . . . Max Kills in Single Turn 2 | . 1 2 2 . . . Gunslinging 1 | . . 1 . . . . Exploded . | . . . . . . . Melee . | . . . . . . . Uniques/NPCs Destroyed . | . . . . . . . Combat | -11 -10 -10 -9 -9 -7 -7 -------- Run | Yrd Mat Min Mat Min Zio Dee Hostile Shots Fired 248 | . 71 22 66 . . 89 Missed 78 | . 18 8 18 . . 34 Damage Taken 3058 | . 601 111 647 . . 1699 Core 579 | . 121 32 152 . . 274 Absorbed by Shields . | . . . . . . . Redirected to Shielding 10 | . . . 10 . . . Regen/Repaired (Parts) 130 | . . . . . 130 . Core Remaining (%) 69 | 100 . 38 . . . . Volleys Fired 174 | . 83 9 82 . . . Largest 2 | . 2 2 2 . . . Hottest 101 | . 85 70 101 . . . Shots Fired 336 | . 163 18 155 . . . Gun 295 | . 155 18 122 . . . Cannon 38 | . 8 . 30 . . . Launcher 3 | . . . 3 . . . Special . | . . . . . . . Kinetic 199 | . 126 9 64 . . . Thermal 122 | . 37 9 76 . . . Explosive . | . . . . . . . Electromagnetic 15 | . . . 15 . . . Robot Hit Streak 16 | . 13 9 16 . . . Robot Miss Streak 5 | . 4 5 4 . . . Penetration Max . | . . . . . . . Secondary Targets 3 | . 1 2 . . . . Max Gunslinging Chain 1 | . 1 1 . . . . Shots Hit Robots 220 | . 103 8 109 . . . Core Hits 82 | . 33 6 43 . . . Critical Kills 1 | . . 1 . . . . Critical Parts Destroyed . | . . . . . . . Critical Strikes 7 | . 3 1 3 . . . Burn 6 | . 3 . 3 . . . Destroy 1 | . . 1 . . . . Melee Attacks 16 | . 9 . 6 . 1 . Impact . | . . . . . . . Slashing 16 | . 9 . 6 . 1 . Piercing . | . . . . . . . Sneak Attacks 3 | . . . 3 . . . Combat Hostiles . | . . . . . . . Follow-up Attacks . | . . . . . . . Damage Inflicted 3176 | . 1135 109 1932 . . . Guns 2285 | . 993 109 1183 . . . Cannons 535 | . 118 . 417 . . . Explosions 147 | . . . 147 . . . Melee 206 | . 24 . 182 . . . Ramming 3 | . . . 3 . . . Kinetic 1407 | . 810 28 569 . . . Thermal 1325 | . 301 81 943 . . . Explosive . | . . . . . . . Electromagnetic 235 | . . . 235 . . . Impact . | . . . . . . . Slashing 206 | . 24 . 182 . . . Piercing . | . . . . . . . Highest Corruption . | . . . . . . . Average Corruption . | . . . . . . . Corruption Purged . | . . . . . . . Corruption Blocked . | . . . . . . . Overload Shots . | . . . . . . . Overflow Damage 3 | . . . 3 . . . Projectiles 3 | . . . 3 . . . Explosions . | . . . . . . . Melee . | . . . . . . . Knockbacks 9 | . 1 . 8 . . . Impact . | . . . . . . . Kinetic 8 | . 1 . 7 . . . Secondary 1 | . . . 1 . . . Self-Inflicted Damage . | . . . . . . . Shots . | . . . . . . . Rammed 2 | . . . 2 . . . Targets Rammed 2 | . . . 2 . . . Kicked . | . . . . . . . Crushed . | . . . . . . . Highest Temperature 304 | . 84 90 304 . . 18 Average Temperature 62 | . 29 43 82 . . 8 Received Heat Transfer 1053 | . 300 . 258 . . 495 Effects 1 | . . . 1 . . . Energy Bleed 1 | . . . 1 . . . Siege Activations . | . . . . . . . Robots Corrupted . | . . . . . . . Combat Hostiles . | . . . . . . . Parts Fried . | . . . . . . . Impact Corruptions . | . . . . . . . Robots Melted . | . . . . . . . Combat Hostiles . | . . . . . . . Parts Melted 2 | . 1 . 1 . . . Heat Transferred 3554 | . 1073 222 2259 . . . Parts Sabotaged . | . . . . . . . Parts Stolen . | . . . . . . . Parts Stripped . | . . . . . . . Power Chain Reactions 1 | . . . 1 . . . Alert | -11 -10 -10 -9 -9 -7 -7 ------- Run | Yrd Mat Min Mat Min Zio Dee Peak Influence 295 | . 217 155 295 11 . . Initial 60 | . . . 60 11 . . Average 77 | . 54 110 110 11 . . Maximum Alert Level 1 | . 1 . 1 . . . Low Security (%) 96 | 100 92 100 97 100 . . Level 1 3 | . 7 . 2 . . . Level 2 . | . . . . . . . Level 3 . | . . . . . . . Level 4 . | . . . . . . . Level 5 . | . . . . . . . High Security . | . . . . . . . Max Security . | . . . . . . . Squads Dispatched 6 | . 3 . 3 . . . Investigation 3 | . 2 . 1 . . . Extermination . | . . . . . . . Reinforcement 3 | . 1 . 2 . . . Assault . | . . . . . . . Garrison . | . . . . . . . Intercept . | . . . . . . . Searches Triggered . | . . . . . . . Construction Impeded . | . . . . . . . Haulers Reinforced . | . . . . . . . Active Scanning Responses . | . . . . . . . Cargo Convoy Interrupts . | . . . . . . . Stealth | -11 -10 -10 -9 -9 -7 -7 --------- Run | Yrd Mat Min Mat Min Zio Dee Distress Signals 3 | . 1 . 2 . . . Communications Jammed . | . . . . . . . Distress Signals . | . . . . . . . Times Spotted 70 | . 18 5 38 . . 9 Peak Tracking Total 9 | . 3 3 6 . . 9 Tactical Retreats 2 | . 1 . 1 . . . Traps | -11 -10 -10 -9 -9 -7 -7 ------- Run | Yrd Mat Min Mat Min Zio Dee Traps Triggered 2 | . 2 . . . . . Indirectly . | . . . . . . . Trap Hack Attempts . | . . . . . . . Triggered . | . . . . . . . Disarmed . | . . . . . . . Reprogrammed . | . . . . . . . Reused . | . . . . . . . Traps Extracted . | . . . . . . . Installed . | . . . . . . . Triggered . | . . . . . . . Machines | -11 -10 -10 -9 -9 -7 -7 ---------- Run | Yrd Mat Min Mat Min Zio Dee Machines Disabled 3 | . . . 3 . . . Max in Single Turn 1 | . . . 1 . . . Machines Repaired . | . . . . . . . Machines Dismantled . | . . . . . . . Machines Sabotaged . | . . . . . . . Overloaded Fab Kills . | . . . . . . . Hacking | -11 -10 -10 -9 -9 -7 -7 --------- Run | Yrd Mat Min Mat Min Zio Dee Machines Accessed 11 | . 5 . 6 . . . Terminals 10 | . 5 . 5 . . . Fabricators . | . . . . . . . Repair Stations . | . . . . . . . Recycling Units . | . . . . . . . Scanalyzers 1 | . . . 1 . . . Garrison Access . | . . . . . . . Total Hacks 42 | . 21 . 21 . . . Successful 22 | . 9 . 13 . . . Failed 20 | . 12 . 8 . . . Catastrophic 3 | . 3 . . . . . Database Lockouts . | . . . . . . . Manual 43 | . 20 . 14 . 9 . Terminals 39 | . 21 . 18 . . . Fabricators . | . . . . . . . Repair Stations . | . . . . . . . Recycling Units . | . . . . . . . Scanalyzers 3 | . . . 3 . . . Garrison Access . | . . . . . . . Terminal Hacks 15 | . 7 . 8 . . . Robot Analysis 4 | . 2 . 2 . . . Branch Access Points 1 | . . . 1 . . . Terminal Index 1 | . 1 . . . . . Alert Level 1 | . . . 1 . . . Unreport Threat 5 | . 2 . 3 . . . Locate Traps 1 | . 1 . . . . . Recall Investigation 1 | . 1 . . . . . Hauler Manifests 1 | . . . 1 . . . Fabricator Hacks . | . . . . . . . Repair Station Hacks . | . . . . . . . Recycling Unit Hacks . | . . . . . . . Scanalyzer 2 | . . . 2 . . . Insert Component 1 | . . . 1 . . . Analyze 1 | . . . 1 . . . Garrison Access Hacks . | . . . . . . . Unauthorized Hacks 5 | . 2 . 3 . . . Terminals 5 | . 2 . 3 . . . Botnet 4 | . 2 . 2 . . . Operators 1 | . . . 1 . . . Fabricators . | . . . . . . . Repair Stations . | . . . . . . . Recycling Units . | . . . . . . . Scanalyzers . | . . . . . . . Garrison Access . | . . . . . . . Data Cores Recovered 1 | . . . 1 . . . Used . | . . . . . . . Hacking Detections 11 | . 5 . 6 . . . Full Trace Events 2 | . 1 . 1 . . . Feedback Events . | . . . . . . . Feedback Blocked . | . . . . . . . Robot Schematics Acquired 3 | . . . . . 3 . Robots Built . | . . . . . . . Authchips . | . . . . . . . Time . | . . . . . . . Total Robot Build Rating . | . . . . . . . Part Schematics Acquired 16 | . . . 1 . 15 . Parts Built . | . . . . . . . Authchips . | . . . . . . . Time . | . . . . . . . Total Part Build Rating . | . . . . . . . Parts Repaired . | . . . . . . . Time . | . . . . . . . Parts Recycled . | . . . . . . . Recycled Matter . | . . . . . . . Retrieved Matter . | . . . . . . . Retrieved Components . | . . . . . . . Parts Scanalyzed 1 | . . . 1 . . . Part Schematics Acquired 1 | . . . 1 . . . Parts Damaged . | . . . . . . . Bothacking | -11 -10 -10 -9 -9 -7 -7 ------------ Run | Yrd Mat Min Mat Min Zio Dee Used RIF Installer . | . . . . . . . Robots Hacked . | . . . . . . . Non-combat . | . . . . . . . Combat . | . . . . . . . Robot Hacks Applied . | . . . . . . . Relay Couplers Released . | . . . . . . . Fabnet Peak Effective % . | . . . . . . . Robots Rewired . | . . . . . . . Allies Hacked . | . . . . . . . Hacks Repelled . | . . . . . . . Allies | -11 -10 -10 -9 -9 -7 -7 -------- Run | Yrd Mat Min Mat Min Zio Dee Total Allies 4 | . . . . . 4 . Largest Group 4 | . . . . . 4 4 Highest-Rated Group 157 | . . . . . 157 157 Highest-Rated Ally 40 | . . . . . 40 40 Total Orders . | . . . . . . . Ally Attacks . | . . . . . . . Total Damage . | . . . . . . . Kills . | . . . . . . . Allies Corrupted . | . . . . . . . Allies Melted . | . . . . . . . Intel | -11 -10 -10 -9 -9 -7 -7 ------- Run | Yrd Mat Min Mat Min Zio Dee Robot Analysis Total 4 | . 2 . 2 . . . Derelict Logs Recovered 2 | . . 1 . . 1 . Drone Launches . | . . . . . . . Drone Recoveries . | . . . . . . . Exploration | -11 -10 -10 -9 -9 -7 -7 ------------- Run | Yrd Mat Min Mat Min Zio Dee Turns Passed 5923 | 51 1212 248 1412 325 2370 305 Spaces Moved 3243 | 43 631 184 644 189 1375 177 Core 6 | 6 . . . . . . Treads 2538 | . 333 . 464 189 1375 177 Legs . | . . . . . . . Wheels 699 | 37 298 184 180 . . . Hover . | . . . . . . . Flight . | . . . . . . . Fastest Speed 50 | 50 90 115 115 170 170 170 Average Speed 156 | 84 135 115 156 170 170 170 Slowest Speed 250 | 90 160 115 250 170 170 250 Overloaded Moves . | . . . . . . . Propulsion Burnouts . | . . . . . . . Robots Hopped . | . . . . . . . Cave-ins Triggered . | . . . . . . . Exploration Rate (%) 47 | 3 73 42 51 41 91 30 Regions Visited 6 Branch Regions 4 Pre-discovered Areas 2 | . . . . . 2 . Known Exits Taken 1 | . . . 1 . . . Unknown Exits Taken 5 | 1 1 1 . 1 1 . Scrap Searched 3 | . . . . . 3 . Spaces Dug 3 | . 3 . . . . . Terrain Destroyed 5 | . 3 . 2 . . . Melee 3 | . 3 . . . . . Projectile . | . . . . . . . AOE 2 | . . . 2 . . . Terrain Rammed . | . . . . . . . Walls Destroyed . | . . . . . . . Machines Disabled . | . . . . . . . Actions | -11 -10 -10 -9 -9 -7 -7 --------- Run | Yrd Mat Min Mat Min Zio Dee Total 3736 | 54 819 203 885 192 1404 179 Wait 162 | . 50 8 101 . 3 . Move 3237 | 42 630 183 643 188 1374 177 Hop . | . . . . . . . Pick Up 50 | 6 20 . 12 1 11 . Fast Attach 16 | 6 1 . 5 . 4 . Attach 11 | . 4 . 6 . . 1 Detach 1 | . . . . . 1 . Swap 41 | . 15 2 16 2 5 1 Drop 26 | . 7 1 12 1 5 . Fire 174 | . 83 9 82 . . . Melee 16 | . 9 . 6 . 1 . Ram . | . . . . . . . Kick . | . . . . . . . Crush 2 | . . . 2 . . . Escape Stasis . | . . . . . . . Rewire . | . . . . . . . Trap . | . . . . . . . Miscellaneous . | . . . . . . . Route ------- -11/Scrapyard -10/Materials (discovered 4 exits: *Mat x3 / [*Min]) -10/Mines -9/Materials (discovered 3 exits: [*Mat] / *Min x2) -9/Mines -7/Zion (discovered 2 exits: [*Dee] / [*Pro]) -7/Deep Caves History --------- Turn | Location | Event 15 | -11/Scrapyard | Discovered new exit (range 16) 52 | -11/Scrapyard | Entered Materials 310 | -10/Materials | Build established: Mutant 420 | -10/Materials | Discovered new exit (range 3) 674 | -10/Materials | Discovered new exit (range 12) 983 | -10/Materials | Discovered new exit (range 5) 1108 | -10/Materials | Discovered new exit (range 12) 1264 | -10/Materials | Entered Mines 1266 | -10/Mines | Core integrity fell below 50% 1455 | -10/Mines | Learned Materials terminal intel 1487 | -10/Mines | Discovered new exit (range 12) 1512 | -10/Mines | Entered Materials 1512 | -9/Materials | Evolved 2 slots: Utility x2 1513 | -9/Materials | Loaded intel: 12 terminal locations 1632 | -9/Materials | Identified exit to Mines 2474 | -9/Materials | Discovered new exit (range 16) 2924 | -9/Materials | Entered Mines 3137 | -9/Mines | Build established: Hacker-Mutant 3199 | -9/Mines | A Derelict revealed a hidden shortcut to a safe place 3249 | -9/Mines | Entered Zion 3463 | -7/Zion | Discovered new exit (range 14) 3709 | -7/Zion | Visited the Megawrench Repair Shop 3713 | -7/Zion | Megawrench repaired 7 parts 3881 | -7/Zion | Learned location of Armory (-4) 3902 | -7/Zion | Learned 4 Factory zone layouts 3985 | -7/Zion | Learned location of Data Miner (-6) 4109 | -7/Zion | Acquired unknown access codes intercepted by a Zionite 4522 | -7/Zion | Given A8's code to call for help 4987 | -7/Zion | Found Prototype Special Weapon 4987 | -7/Zion | Identified RU-N14's Throwing Claymores 5340 | -7/Zion | Imprinted 5342 | -7/Zion | Declared Zion's savior 5585 | -7/Zion | Opened final containment barrier to the Deep Caves 5610 | -7/Zion | Discovered new exit (range 5) 5614 | -7/Zion | Saw the warning signs outside the Deep Caves entrance 5619 | -7/Zion | Entered Deep Caves 5619 | -7/Deep Caves | Accompanied by 4 allies 5876 | -7/Deep Caves | Attacked by Z-Imprinter 5902 | -7/Deep Caves | Z-Facility disabled 5916 | -7/Deep Caves | Core integrity fell below 50% 5924 | -7/Deep Caves | Destroyed by 0B-YAT(z) with Zionite Laser-S Last Messages --------------- [Achievement: Signs Are For Wimps] LOCATION=UNKNOWN GOAL=ESCAPE 05621_ K7-6BR(M): "Okay, we didn't really expect you'd be crazy enough to head out this way. We'll go back and get... reinforcements... yeah." 05621_ K7-6BR(M) slips into the shadows. 05622_ X6-NLF(M) slips into the shadows. 05622_ JS-JC8(M) slips into the shadows. 05623_ 6A-XFS(M) slips into the shadows. 05868_ NEW_ZION: Z-Facility proximity alert. Z-Imprinter: GET AWAY FROM HERE! I've worked too hard for our future just to have you ruin everything! 05902_ Z-Facility disabled. 05910_ Cld. Ion Engine destroyed. 05910_ Arm. Treads destroyed. 05918_ Structural Scanner destroyed. 05919_ Imp. EM Shotgun destroyed. 05921_ Mni. Grenade Launcher destroyed. 05923_ Arm. Treads destroyed. [Achievement: This Is Interesting...] Map ----- +----------------------------------------------------+ | | | | | | | | | | | | | | | | | | | ??????????????????????????#?????#################? | | ????????????????????????## ??##################### | | ????????????????????????## ?###### ### | | ????????????????########## ### ## | | ???????????????########### ### ## | | ??????????????#### # ### ## | | ?????????????? # ## | | ????????????? zzz zzz | | ????????????? | | ???????????? | | ???????????? z | | ???????????? zI"""" """""" | | ??????????? """""""""""""" | | ??????????? """"""""""""" | | ?????????? """"""""""""" | | ?????????? """""""""" | | ?????????? @ """""?????""" | | ?????????? """""??????""" | | ?????????? """""???????"" | | ??????????? """""????????" | | ??????????? """""???????? | | ???????????? """????????? | | ???????????? ""??????????? | | ???????????? """???????????????? | | ????????????? """???????????????? | | ????????????? ""????????????????? | | ?????????????? ""????????????????? | | ?????????????? ""????????????????? | | ???????????????? "?????????????????? | | ?????????????????? "?????????????????? | | ????????????????????? ???????????????????? | | ??????????????????????? ?????????????????????? | | ?????????????????????????????????????????????????? | | ?????????????????????????????????????????????????? | | ?????????????????????????????????????????????????? | | ?????????????????????????????????????????????????? | | ?????????????????????????????????????????????????? | | ?????????????????????????????????????????????????? | | ?????????????????????????????????????????????????? | | ?????????????????????????????????????????????????? | | ?????????????????????????????????????????????????? | +----------------------------------------------------+ Best States ------------- Heat Dissipation 28 Energy Generation 14 Energy Capacity 280 Matter Stores 300 Matter Capacity 300 Sight Range 16 Terrain Scan Density 10 ECM Strength 1 Armor Coverage 150 Utility Shielding 33 Evasion (%) 42 Recoil Reduction 2 Offensive Hacking 20 Item Schematics ----------------- Hacking Suite | -9/Materials | Scanalyzed Hyp. Gauss Rifle | -7/Zion | Archive Mak. System Shield | -7/Zion | Archive Imp. EM Pulse Cannon | -7/Zion | Archive Force Field | -7/Zion | Archive Mak. Flight Unit | -7/Zion | Archive Matter Compressor | -7/Zion | Archive Lightning Gun | -7/Zion | Archive Antigrav System | -7/Zion | Archive Imp. Dynamic Insulation System | -7/Zion | Archive Core Analyzer | -7/Zion | Archive Plasma Rifle | -7/Zion | Archive Hvy. Ion Cannon | -7/Zion | Archive Power Sword | -7/Zion | Archive Arm. Leg | -7/Zion | Archive Kinecellerator | -7/Zion | Archive Robot Schematics ------------------ T-07 Excavator | -7/Zion | Archive I-36 Angel | -7/Zion | Archive Y-72 Warden | -7/Zion | Archive Fabricated ------------ Nothing Alien Tech Used ----------------- None Achievements -------------- Signs Are For Wimps This Is Interesting... Challenges ------------ None Game ------ Seed AuthchipPhasingKatana Manual? 0 Play Time 00:58:09 Cumulative 24.1 hours Start 2024.04.20 @ 14:24:47 End 2024.04.20 @ 15:30:33 Sessions 1 Manual Loads 0 Difficulty Rogue Special Mode None Game No. 17 Rogue 17 Adventurer 0 Explorer 0 Win Type - Total 1 Types 1/0/0/0/0/0/0/0/0 Lore% 25 Gallery% 19 Achievement% 29 Wizard Run 0 Options --------- Layout 0 ASCII 0 Keyboard 0 Movement Mouse Keybinds 0 Fullscreen 2 Font 24/Smallcaps Map View 76x50 Zoom Use 0% Tactical HUD 1 Map Filters NONE Filters NONE Steam 0 RUN: f104573a-2d8b-4260-a829-e3954fee11d1